Cogmind - Beta 16 @@@ ROGUE MODE // 2025.12.27 @ 17:30:10 Player: McSaucyNugget Result: Destroyed by B-36 Bruiser with Hammer Performance ------------- Evolutions (1) 500 Regions Visited (2) 400 Robots Destroyed (7) 35 Value Destroyed (221) 221 Prototype IDs (0) 0 Alien Tech Used (0) 0 Bonus (200) 200 TOTAL SCORE: 1356 Bonus ------- Pacifist 200 Cogmind --------- Core Integrity 0/400 Matter 300/300 Energy 100/100 System Corruption 0% Temperature Cool (0) Movement Treading (160) Location -9/Materials Parts ------- > --- POWER (1) -------- (None) > --- PROPULSION (3) --- Light Treads Light Treads > --- UTILITY (3) ------ Large Storage Unit > --- WEAPON (2) ------- Hammer Hammer > --- INVENTORY (15) --- Ion Engine Light Treads Peak State ------------ > --- POWER ------------ (None) > --- PROPULSION ------- Light Treads Light Treads > --- UTILITY ---------- Large Storage Unit Light Armor Plating > --- WEAPON ----------- Hammer Hammer > --- INVENTORY -------- Ion Engine Light Treads [Rating: 6] Favorites ----------- Power Ion Engine Engine Ion Engine Propulsion Aluminum Leg Treads Light Treads Leg Aluminum Leg Utility Light Armor Plating Device Seismic Detector Storage Large Storage Unit Processor Targeting Computer Protection Light Armor Plating Weapon Hammer Impact Weapon Hammer Build | -11 -10 -9 ------- Run | Yrd Mat Mat Slots Evolved 2 | . . 2 Power . | . . . Propulsion 1 | . . 1 Utility 1 | . . 1 Weapon . | . . . Parts Attached 12 | 3 2 7 Power 1 | 1 . . Engine 1 | 1 . . Core . | . . . Reactor . | . . . Propulsion 4 | 2 . 2 Treads 2 | . . 2 Leg 2 | 2 . . Wheel . | . . . Hover . | . . . Flight . | . . . Utility 5 | . 2 3 Device 1 | . 1 . Storage 2 | . . 2 Processor 1 | . 1 . Hackware . | . . . Protection 1 | . . 1 Artifact . | . . . Weapon 2 | . . 2 Energy Gun . | . . . Energy Cannon . | . . . Ballistic Gun . | . . . Ballistic Cannon . | . . . Launcher . | . . . Special Weapon . | . . . Impact Weapon 2 | . . 2 Slashing Weapon . | . . . Piercing Weapon . | . . . Special Melee Weapon . | . . . Unidentified Prototypes . | . . . Parts Lost 4 | . 3 1 Power . | . . . Propulsion 2 | . 2 . Utility 2 | . 1 1 Weapon . | . . . Highest Loss Streak 2 | . 2 1 To Critical Strikes . | . . . Average Backups 2 | . 1 2 Power . | . 1 1 Propulsion . | . . . Utility . | . . . Weapon . | . . . Tool/Special . | . . . Unused Backups 1 | . . 1 Power . | . . . Propulsion 1 | . . 1 Utility . | . . . Weapon . | . . . Tool/Special . | . . . Average Slot Usage (%) 33 | . 32 33 Treads 5 | . . 9 Leg 11 | . 26 . Device 2 | . 6 . Storage 2 | . . 4 Protection 3 | . . 5 Impact Weapon 8 | . . 15 Peak Build Rating 6 | 3 4 6 Average Rating 2 | 1 2 3 On Entrance . | . 2 . Avg Prop Armor Cover (%) 36 | 38 36 . Naked Turns 35 | . 23 12 Heaviest Build 27 | 5 1 27 Greatest Support 40 | 20 3 40 Greatest Overweight (x) 2 | . . 2 Average Overweight (x) . | . . . Largest Inventory Capacity 15 | 5 5 15 Average Capacity 7 | 5 5 9 Most Carried 5 | 1 2 5 Average Carried 2 | . 1 2 Final Capacity 15 | 5 5 15 Final Carried 2 | 1 2 2 Class Distribution -------------------- 100% | Mutant Dominant Class ---------------- Mutant | -10/Materials Mutant | -9/Materials Resources | -11 -10 -9 ----------- Run | Yrd Mat Mat Matter Collected 359 | 200 39 120 Remotely . | . . . Salvage Created 294 | . . 294 Parts 14 | . . 14 Haulers Intercepted 1 | . . 1 Recyclers Shooed 2 | . . 2 Parts Field Recycled . | . . . Retrieved Matter . | . . . Parts Self-Destructed . | . . . Prevented . | . . . Parts Restored . | . . . Kills | -11 -10 -9 ------- Run | Yrd Mat Mat Combat Hostiles Destroyed 5 | . . 5 Melee 3 | . . 3 Classes Destroyed 4 | . . 4 Hauler 1 | . . 1 Watcher 1 | . . 1 Grunt 2 | . . 2 Sentry 3 | . . 3 Best Kill Streak 3 | . . 3 Combat Bots Only 2 | . . 2 Max Kills in Single Turn 1 | . . 1 Gunslinging . | . . . Exploded . | . . . Melee 1 | . . 1 Uniques/NPCs Destroyed . | . . . Combat | -11 -10 -9 -------- Run | Yrd Mat Mat Hostile Shots Fired 145 | . 91 54 Missed 46 | . 37 9 Hits 99 | . 54 45 Melee 1 | . . 1 Projectile 98 | . 54 44 Damage Taken 1074 | . 453 621 Core 640 | . 239 401 Absorbed by Shields . | . . . Core Remaining (%) 52 | 100 4 . Volleys Fired . | . . . Largest . | . . . Hottest . | . . . Shots Fired . | . . . Gun . | . . . Cannon . | . . . Launcher . | . . . Special . | . . . Kinetic . | . . . Thermal . | . . . Explosive . | . . . Electromagnetic . | . . . Robot Hit Streak . | . . . Robot Miss Streak . | . . . Penetration Max . | . . . Secondary Targets . | . . . Shots Hit Robots 35 | . . 35 Core Hits 7 | . 2 5 Critical Kills 2 | . . 2 Critical Parts Destroyed 3 | . . 3 Critical Strikes 5 | . . 5 Smash 5 | . . 5 Melee Attacks 41 | . . 41 Impact 41 | . . 41 Slashing . | . . . Piercing . | . . . Sneak Attacks 5 | . . 5 Combat Hostiles . | . . . Follow-up Attacks 4 | . . 4 Damage Inflicted 923 | . 55 868 Guns . | . . . Cannons . | . . . Explosions . | . . . Melee 868 | . . 868 Ramming 55 | . 55 . Kinetic . | . . . Thermal . | . . . Explosive . | . . . Electromagnetic . | . . . Impact 868 | . . 868 Slashing . | . . . Piercing . | . . . Highest Corruption 6 | . 6 . Average Corruption 4 | . 4 . Corruption Purged . | . . . Corruption Blocked . | . . . Effects 3 | . 3 . Message Errors 2 | . 2 . Energy Discharges 1 | . 1 . Overload Shots . | . . . Overflow Damage 96 | . . 96 Projectiles . | . . . Explosions . | . . . Melee 96 | . . 96 Knockbacks 1 | . . 1 Impact 1 | . . 1 Kinetic . | . . . Secondary . | . . . Self-Inflicted Damage 24 | . 24 . Shots . | . . . Rammed 15 | . 15 . Targets Rammed 15 | . 15 . Kicked . | . . . Crushed . | . . . Highest Temperature . | . . . Average Temperature . | . . . Received Heat Transfer 198 | . . 198 Siege Activations . | . . . Martial Activations . | . . . Shielding Activations . | . . . Robots Disrupted . | . . . Combat Hostiles . | . . . Robots Corrupted 2 | . . 2 Combat Hostiles 2 | . . 2 Parts Fried . | . . . Impact Corruptions 9 | . . 9 Robots Melted . | . . . Combat Hostiles . | . . . Parts Melted . | . . . Heat Transferred . | . . . Parts Sabotaged . | . . . Parts Stolen . | . . . Parts Stripped . | . . . Power Chain Reactions . | . . . Alert | -11 -10 -9 ------- Run | Yrd Mat Mat Maximum Alert Level . | . . . Low Security (%) 100 | 100 100 100 Level 1 . | . . . Level 2 . | . . . Level 3 . | . . . Level 4 . | . . . Level 5 . | . . . High Security . | . . . Max Security . | . . . Peak Influence 58 | . 45 58 Initial 18 | . . 18 Average 18 | . 8 28 Influence Increases 279 | . 95 184 Destroy 0b10 Robot/C 100 | . . 100 Destroy 0b10 Robot/NC 10 | . . 10 Destroy Leader 34 | . . 34 Successful Hack 14 | . 5 9 Destroy Structure 1 | . . 1 Partial Spotted 30 | . . 30 Lose Combat Pursuer 90 | . 90 . Influence Decreases 257 | . 50 207 Entered New Map 27 | . . 27 Time Decay 210 | . 40 170 Lost Part 20 | . 10 10 Squads Dispatched 1 | . 1 . Investigation 1 | . 1 . Extermination . | . . . Reinforcement . | . . . Assault . | . . . Garrison . | . . . Intercept . | . . . Searches Triggered . | . . . Construction Impeded . | . . . Haulers Reinforced . | . . . Active Scanning Responses . | . . . Cargo Convoy Interrupts . | . . . Stealth | -11 -10 -9 --------- Run | Yrd Mat Mat Distress Signals 4 | . 2 2 Communications Jammed . | . . . Distress Signals . | . . . Times Spotted 23 | . 9 14 Peak Tracking Total 7 | . 7 4 Tactical Retreats 2 | . 2 . Traps | -11 -10 -9 ------- Run | Yrd Mat Mat Traps Triggered 1 | . 1 . Indirectly . | . . . Trap Hack Attempts . | . . . Triggered . | . . . Disarmed . | . . . Reprogrammed . | . . . Reused . | . . . Traps Extracted . | . . . Installed . | . . . Triggered . | . . . Machines | -11 -10 -9 ---------- Run | Yrd Mat Mat Machines Disabled . | . . . Max in Single Turn . | . . . Machines Repaired . | . . . Machines Dismantled . | . . . Machines Sabotaged . | . . . Overloaded Fab Kills . | . . . Hacking | -11 -10 -9 --------- Run | Yrd Mat Mat Machines Accessed 5 | . 4 1 Terminals 5 | . 4 1 Fabricators . | . . . Repair Stations . | . . . Recycling Units . | . . . Scanalyzers . | . . . Garrison Access . | . . . Total Hacks 11 | . 8 3 Successful 4 | . 2 2 Failed 7 | . 6 1 Catastrophic . | . . . Database Lockouts . | . . . Manual 7 | . 4 3 Terminals 11 | . 8 3 Fabricators . | . . . Repair Stations . | . . . Recycling Units . | . . . Scanalyzers . | . . . Garrison Access . | . . . Terminal Hacks 2 | . 2 . Alert Level 1 | . 1 . Zone Layout 1 | . 1 . Fabricator Hacks . | . . . Repair Station Hacks . | . . . Recycling Unit Hacks . | . . . Scanalyzer . | . . . Garrison Access Hacks . | . . . Unauthorized Hacks 2 | . . 2 Terminals 2 | . . 2 Botnet 1 | . . 1 Skim 1 | . . 1 Fabricators . | . . . Repair Stations . | . . . Recycling Units . | . . . Scanalyzers . | . . . Garrison Access . | . . . Data Cores Recovered . | . . . Used . | . . . Hacking Detections 4 | . 4 . Full Trace Events . | . . . Feedback Events . | . . . Feedback Blocked . | . . . Robot Schematics Acquired . | . . . Robots Built . | . . . Authchips . | . . . Time . | . . . Total Robot Build Rating . | . . . Part Schematics Acquired . | . . . Parts Built . | . . . Authchips . | . . . Time . | . . . Total Part Build Rating . | . . . Part Studies Acquired . | . . . Parts Repaired . | . . . Time . | . . . Parts Recycled . | . . . Recycled Matter . | . . . Retrieved Matter . | . . . Retrieved Components . | . . . Parts Scanalyzed . | . . . Part Schematics Acquired . | . . . Parts Damaged . | . . . Bothacking | -11 -10 -9 ------------ Run | Yrd Mat Mat Used RIF Installer . | . . . Robots Hacked . | . . . Non-combat . | . . . Combat . | . . . Robot Hacks Applied . | . . . Relay Couplers Released . | . . . Fabnet Peak Effective % . | . . . Robots Rewired . | . . . Allies Hacked . | . . . Hacks Repelled . | . . . Allies | -11 -10 -9 -------- Run | Yrd Mat Mat Total Allies . | . . . Largest Group . | . . . Highest-Rated Group . | . . . Highest-Rated Ally . | . . . Total Orders . | . . . Ally Attacks . | . . . Total Damage . | . . . Kills . | . . . Allies Corrupted . | . . . Allies Melted . | . . . Intel | -11 -10 -9 ------- Run | Yrd Mat Mat Active Infowar (turns) 120 | . 120 . Seismic 120 | . 120 . Robot Analysis Total . | . . . Derelict Logs Recovered . | . . . Drone Launches . | . . . Drone Recoveries . | . . . Exploration | -11 -10 -9 ------------- Run | Yrd Mat Mat Turns Passed 646 | 35 271 340 Spaces Moved 764 | 48 496 220 Core 697 | 40 496 161 Treads 59 | . . 59 Legs 8 | 8 . . Wheels . | . . . Hover . | . . . Flight . | . . . Fastest Speed 50 | 50 50 50 Average Speed 61 | 61 50 88 Slowest Speed 160 | 120 50 160 Overloaded Moves . | . . . Propulsion Burnouts . | . . . Robots Hopped . | . . . Potential Cave-ins . | . . . Cave-ins Triggered . | . . . Exploration Rate (%) 36 | 3 89 17 Regions Visited 2 Branch Regions . Pre-discovered Areas . | . . . Known Exits Taken . | . . . Unknown Exits Taken 2 | 1 1 . Scrap Searched . | . . . Spaces Dug 1 | . . 1 Terrain Destroyed 1 | . . 1 Melee 1 | . . 1 Projectile . | . . . AOE . | . . . Terrain Rammed . | . . . Walls Destroyed . | . . . Machines Disabled . | . . . Actions | -11 -10 -9 --------- Run | Yrd Mat Mat Total 868 | 51 517 300 Wait 25 | . 3 22 Move 762 | 47 495 220 Hop . | . . . Pick Up 3 | . 1 2 Fast Attach 10 | 3 2 5 Attach 7 | . . 7 Detach 8 | 1 1 6 Swap . | . . . Drop 1 | . . 1 Fire . | . . . Melee 37 | . . 37 Ram 15 | . 15 . Kick . | . . . Crush . | . . . Escape Stasis . | . . . Rewire . | . . . Trap . | . . . Miscellaneous . | . . . Route ------- -11/Scrapyard -10/Materials (discovered 5 exits: *Mat x3 / [*Min x2]) -9/Materials History --------- Turn | Location | Event 8 | -11/Scrapyard | Discovered new exit (range 15) 36 | -11/Scrapyard | Entered Materials 85 | -10/Materials | Discovered new exit (range 16) 101 | -10/Materials | Met 8R-AWN 148 | -10/Materials | Discovered new exit (range 4) 187 | -10/Materials | Discovered new exit (range 3) 243 | -10/Materials | Discovered new exit (range 9) 280 | -10/Materials | Core integrity fell below 50% 291 | -10/Materials | Core integrity fell below 20% 302 | -10/Materials | Discovered new exit (range 8) 304 | -10/Materials | Build established: Mutant 307 | -10/Materials | Entered another Materials area 307 | -9/Materials | Evolved 2 slots: Propulsion x1, Utility x1 471 | -9/Materials | Core integrity fell below 50% 590 | -9/Materials | Core integrity fell below 20% 647 | -9/Materials | Destroyed by B-36 Bruiser with Hammer Last Messages --------------- 00582_ Sneak attack on R-06 Scavenger. 00582_ Hammer follow-up attack on R-06 Scavenger. 00582_ Destroyed Com. Wheel. 00582_ R-06 Scavenger system corrupted by crushing effect. 00582_ R-06 Scavenger knocked back. 00585_ Destroyed Com. Wheel. 00585_ R-06 Scavenger system corrupted by crushing effect. 00591_ Lgt. Armor Plating destroyed. 00599_ G-34 Mercenary suffers critical hit (Smash). 00599_ G-34 Mercenary destroyed. 00601_ K-01 Serf cleans the Terminal. 00614_ G-34 Mercenary destroyed. 00615_ W-16 Scout sends out distress signal. 00617_ Sneak attack on A-02 Transporter. 00617_ Hammer follow-up attack on A-02 Transporter. 00617_ A-02 Transporter destroyed. 00622_ R-06 Scavenger collects Med. Storage Unit. 00623_ Sneak attack on M-13 Machinist. 00626_ R-06 Scavenger collects Prototype Energy Cannon. 00643_ K-01 Serf cleans the Nuclear Reactor. Map ----- +----------------------------------------------------+ | ?????????????????????????????????????????????????? | | ?????????????????????????????????????????????????? | | ?????????????????????????????????????????????????? | | ?????????????????????????????????????????????????? | | ?????????????????????????????????????????????????? | | ?????????????????????????????????????????????????? | | ?????????????????????????????????????????????????? | | ?????????????????????????????????????????????????? | | ?????????????????????????????????????????????????? | | ?????????????????????????????????????????????????? | | ?????????????????????????????????????????????????? | | ?????????????????????????????????????????????????? | | ?????????????????????????????????????????????????? | | ??????????????????#######????????????????????????? | | ????????????????### #????????????????????????? | | ????????????????? #????????????????????????? | | ?????????????????? T ????????????????????????? | | ?????????????????? ?????????????????????????? | | ??????????????????? ?????????????????????????? | | ???????????????????# #?????????????????????????? | | ???????????????????# #?????????????????????????? | | ???????????????????# ######+###????????????????? | | ???????????????????# ## #???????????????? | | ??????????????????## ## """ #???????????????? | | ??????????????????# [%=# """ #???????????????? | | ??????????????????#]%%= #@ """ #???????????????? | | ??????????????????#**[ b k #???????????????? | | ??????????????????# = # """ #???????????????? | | ??????????????????# # """ #???????????????? | | ??????????????????### ### """ #???????????????? | | ????????????????????#r#?# =#???????????????? | | ????????????????????# #?########?#???????????????? | | ????????????????????# #??????????????????????????? | | ????????????????????# #??????????????????????????? | | ????????????????????# #??????????????????????????? | | ????????????????????# #??????????????????????????? | | ????????????????????# #??????????????????????????? | | ????????????????????# #??????????????????????????? | | ????????????????????#%#???#######????????????????? | | ????????????????????#=#?? #????????????????? | | ????????????????????# #?""" #????????????????? | | ????????????????????# ##""" #????????????????? | | ????????????????????# ##""" #????????????????? | | ????????????????????# ## #????????????????? | | ????????????????????# ##""" #????????????????? | | ????????????????????# ##""" #????????????????? | | ????????????????????# #?""" #????????????????? | | ????????????????????# #??? ??????????????????? | | ????????????????????# #???##/####????????????????? | | ??????????????????###+##### # ########?????????? | +----------------------------------------------------+ Best States ------------- Heat Dissipation 28 Energy Generation 5 Energy Capacity 100 Matter Stores 300 Matter Capacity 300 Sight Range 16 Terrain Scan Density 10 Armor Coverage 150 Evasion (%) 50 Targeting Accuracy 5 Recoil Reduction 2 Item Schematics ----------------- None Robot Schematics ------------------ None Fabricated ------------ Nothing Repaired ---------- Nothing Studied --------- None Alien Tech Used ----------------- None Achievements -------------- Follow The Leader Challenges ------------ None Game ------ Seed SalvagingMicrowarpMesh Manual? 0 Play Time 00:12:35 Cumulative 258.8 hours Start 2025.12.22 @ 22:12:31 End 2025.12.27 @ 17:30:10 Sessions 6 Manual Loads 0 Difficulty Rogue Special Mode None Game No. 106 Rogue 106 Adventurer 0 Explorer 0 Win Type - Total 26 Types 10/3/6/2/1/0/0/1/1/2 Lore% 79 Gallery% 76 Achievement% 60 Wizard Run 0 Options --------- Layout 0 ASCII 0 Keyboard 1 Movement Vi Keybinds 0 Fullscreen 2 Font 18/SmallcapsGlow Map View 76x50 Zoom Use 0% Tactical HUD 1 Map Filters NONE Filters NONE Steam 1 RUN: a54c8c01-1ca8-4be7-969e-b352c33a07f4